fUSD/lending_fUSD_20240319
["ID","MTS","AMOUNT","RATE_DAILY","PERIOD"]
[319585568,1710883858042,-222.032006,0.00030398,3]
[319585569,1710883858052,-222.032006,0.00030398,4]
[319585570,1710883858062,-10779.9817232,0.00030403,2]
[319585571,1710883858072,-3591.8485131,0.00030403,2]
[319585572,1710883858082,-132538.1043641,0.00030403,2]
[319585573,1710883858092,-300.0,0.00030405,2]
[319585574,1710883858105,-205.23039274,0.00030409,2]
[319585575,1710883858115,-3096.52739353,0.00030409,2]
[319585576,1710883858127,-150.0,0.00030409,2]
[319585577,1710883858137,-150.0,0.00030409,2]
[319585578,1710883858147,-150.0,0.00030409,2]
[319585579,1710883858158,-524589.23034051,0.0003041,2]
[319585580,1710883858882,-1236751.63687996,0.0003041,2]
[319585581,1710883858892,-155.0,0.0003041,4]
[319585582,1710883858901,-1029.63976993,0.0003041,4]
[319585583,1710883858911,-500.0,0.0003041,2]
[319585584,1710883858921,-554.11478251,0.0003041,2]
[319585585,1710883858930,-500.0,0.0003041,2]
[319585586,1710883858939,-500.0,0.0003041,2]
[319585587,1710883858948,-500.0,0.0003041,2]
[319585588,1710883858958,-500.0,0.0003041,2]
[319585589,1710883858967,-500.0,0.0003041,2]
[319585590,1710883858977,-500.0,0.0003041,2]
[319585591,1710883858986,-500.0,0.0003041,2]
[319585592,1710883858995,-500.0,0.0003041,2]
[319585593,1710883859008,-541.15,0.0003041,2]
[319585594,1710883859018,-500.0,0.0003041,2]
[319585595,1710883859028,-500.0,0.0003041,2]
[319585596,1710883859037,-500.0,0.0003041,2]
[319585597,1710883859047,-782.55,0.0003041,2]
[319585598,1710883859057,-500.0,0.0003041,2]
[319585599,1710883859067,-1175.0,0.0003041,2]
[319585600,1710883859077,-813.24,0.0003041,2]
[319585601,1710883859087,-500.0,0.0003041,2]
[319585602,1710883859098,-569.24,0.0003041,2]
[319585603,1710883859107,-798.81,0.0003041,2]
[319585604,1710883859120,-500.0,0.0003041,2]
[319585605,1710883859130,-500.0,0.0003041,2]
[319585606,1710883859139,-823.89,0.0003041,2]
[319585607,1710883859150,-500.0,0.0003041,2]
[319585608,1710883859162,-590.39,0.0003041,2]
[319585609,1710883859172,-621.72,0.0003041,2]
[319585610,1710883859182,-500.0,0.0003041,2]
[319585611,1710883859192,-500.0,0.0003041,2]
[319585612,1710883859202,-500.0,0.0003041,2]
[319585613,1710883859212,-500.0,0.0003041,2]
[319585614,1710883859222,-500.0,0.0003041,2]
[319585615,1710883859232,-500.0,0.0003041,2]
[319585616,1710883859242,-546.06990828,0.0003041,2]
[319585617,1710883859256,-500.0,0.0003041,2]
[319585618,1710883859266,-500.0,0.0003041,2]
[319585619,1710883859275,-500.0,0.0003041,2]
[319585620,1710883859285,-500.0,0.0003041,2]
[319585621,1710883859294,-500.0,0.0003041,2]
[319585622,1710883859303,-500.0,0.0003041,2]
[319585623,1710883859313,-500.0,0.0003041,2]
[319585624,1710883859323,-500.0,0.0003041,2]
[319585625,1710883859333,-500.0,0.0003041,2]
[319585626,1710883859342,-750.91,0.0003041,2]
[319585627,1710883859352,-500.0,0.0003041,2]
[319585628,1710883859362,-827.98,0.0003041,2]
[319585629,1710883859371,-229.91580524,0.0003041,2]
[319585630,1710883859381,-500.0,0.0003041,2]
[319585631,1710883859391,-562.59,0.0003041,2]
[319585632,1710883859401,-998.0,0.0003041,2]
[319585633,1710883859412,-500.0,0.0003041,2]
[319585634,1710883859421,-157.72863418,0.0003041,2]
[319585635,1710883859431,-519.02171769,0.0003041,2]
[319585636,1710883859441,-570.65,0.0003041,2]
[319585637,1710883859452,-500.0,0.0003041,2]
[319585638,1710883859462,-500.0,0.0003041,2]
[319585639,1710883859470,-500.0,0.0003041,2]
[319585640,1710883859479,-500.0,0.0003041,2]
[319585641,1710883859489,-500.0,0.0003041,2]
[319585642,1710883859498,-500.0,0.0003041,2]
[319585643,1710883859513,-500.0,0.0003041,2]
[319585644,1710883859522,-1839.1,0.0003041,2]
[319585645,1710883859532,-500.0,0.0003041,2]
[319585646,1710883859541,-500.0,0.0003041,2]
[319585647,1710883859550,-500.0,0.0003041,2]
[319585648,1710883859560,-500.0,0.0003041,2]
[319585649,1710883859569,-206.01150372,0.0003041,2]
[319585650,1710883859579,-500.0,0.0003041,2]
[319585651,1710883859588,-500.0,0.0003041,2]
[319585652,1710883859597,-1032.08,0.0003041,2]
[319585653,1710883859608,-729.17,0.0003041,2]
[319585654,1710883859619,-500.0,0.0003041,2]
[319585655,1710883859628,-1913.06,0.0003041,2]
[319585656,1710883859638,-500.0,0.0003041,2]
[319585657,1710883859647,-500.0,0.0003041,2]
[319585658,1710883859656,-500.0,0.0003041,2]
[319585659,1710883859666,-1372.24,0.0003041,2]
[319585660,1710883859675,-500.0,0.0003041,2]
[319585661,1710883859686,-500.0,0.0003041,2]
[319585662,1710883859695,-711.63,0.0003041,2]
[319585663,1710883859705,-500.0,0.0003041,2]
[319585664,1710883859714,-1163.5,0.0003041,2]
[319585665,1710883859724,-500.0,0.0003041,2]
[319585666,1710883859733,-500.0,0.0003041,2]
[319585667,1710883859742,-500.0,0.0003041,2]
[319585668,1710883859753,-500.0,0.0003041,2]
[319585669,1710883859763,-500.0,0.0003041,2]
[319585670,1710883859772,-496.17597361,0.0003041,2]
[319585671,1710883859781,-500.0,0.0003041,2]
[319585672,1710883859791,-500.0,0.0003041,2]
[319585673,1710883859800,-500.0,0.0003041,2]
[319585674,1710883859809,-652.32,0.0003041,2]
[319585675,1710883859819,-500.0,0.0003041,2]
[319585676,1710883859828,-500.0,0.0003041,2]
[319585677,1710883859838,-500.0,0.0003041,2]
[319585678,1710883859848,-500.0,0.0003041,2]
[319585679,1710883859857,-500.0,0.0003041,2]
[319585680,1710883859867,-500.0,0.0003041,2]
[319585681,1710883859877,-357.00217436,0.0003041,2]
[319585682,1710883859886,-500.0,0.0003041,2]
[319585683,1710883859895,-910.23,0.0003041,2]
[319585684,1710883859904,-500.0,0.0003041,2]
[319585685,1710883859915,-500.0,0.0003041,2]
[319585686,1710883859925,-500.0,0.0003041,2]
[319585687,1710883859935,-740.28,0.0003041,2]
[319585688,1710883859947,-500.0,0.0003041,2]
[319585689,1710883859957,-624.91,0.0003041,2]
[319585690,1710883859967,-968.04,0.0003041,2]
[319585691,1710883859978,-500.0,0.0003041,2]
[319585692,1710883859988,-500.0,0.0003041,2]
[319585693,1710883859998,-500.0,0.0003041,2]
[319585694,1710883860010,-500.0,0.0003041,2]
[319585695,1710883860021,-500.0,0.0003041,2]
[319585696,1710883860031,-832.42,0.0003041,2]
[319585697,1710883860040,-500.0,0.0003041,2]
[319585698,1710883860049,-500.0,0.0003041,2]
[319585699,1710883860059,-500.0,0.0003041,2]
[319585700,1710883860068,-500.0,0.0003041,2]
[319585701,1710883860078,-323.98715463,0.0003041,2]
[319585702,1710883860087,-500.0,0.0003041,2]
[319585703,1710883860097,-510.18,0.0003041,2]
[319585704,1710883860110,-500.0,0.0003041,2]
[319585705,1710883860119,-500.0,0.0003041,2]
[319585706,1710883860218,-500.0,0.0003041,2]
[319585707,1710883860227,-500.0,0.0003041,2]
[319585708,1710883860237,-1150.05,0.0003041,2]
[319585709,1710883860246,-500.0,0.0003041,2]
[319585710,1710883860258,-608.08,0.0003041,2]
[319585711,1710883860267,-505.97,0.0003041,2]
[319585712,1710883860276,-1660.24,0.0003041,2]
[319585713,1710883860285,-500.0,0.0003041,2]
[319585714,1710883860294,-626.77,0.0003041,2]
[319585715,1710883860303,-500.0,0.0003041,2]
[319585716,1710883860312,-1083.97,0.0003041,2]
[319585717,1710883860321,-500.0,0.0003041,2]
[319585718,1710883860330,-500.0,0.0003041,2]
[319585719,1710883860338,-573.58,0.0003041,2]
[319585720,1710883860347,-500.0,0.0003041,2]
[319585721,1710883860357,-400.70079027,0.0003041,2]
[319585722,1710883860366,-500.0,0.0003041,2]
[319585723,1710883860375,-713.26,0.0003041,2]
[319585724,1710883860384,-524.58,0.0003041,2]
[319585725,1710883860394,-1659.61,0.0003041,2]
[319585726,1710883860404,-786.87,0.0003041,2]
[319585727,1710883860413,-987.6,0.0003041,2]
[319585728,1710883860424,-562.22,0.0003041,2]
[319585729,1710883860433,-884.6,0.0003041,2]
[319585730,1710883860443,-500.0,0.0003041,2]
[319585731,1710883860452,-509.12,0.0003041,2]
[319585732,1710883860461,-500.0,0.0003041,2]
[319585733,1710883860470,-1565.75,0.0003041,2]
[319585734,1710883860479,-640.95631722,0.0003041,2]
[319585735,1710883860489,-420.58160513,0.0003041,2]
[319585736,1710883860498,-704.58,0.0003041,2]
[319585737,1710883860513,-500.0,0.0003041,2]
[319585738,1710883860522,-500.0,0.0003041,2]
[319585739,1710883860531,-500.0,0.0003041,2]
[319585740,1710883860540,-500.0,0.0003041,2]
[319585741,1710883860550,-500.0,0.0003041,2]
[319585742,1710883860559,-151.0,0.0003041,7]
[319585743,1710883860568,-500.0,0.0003041,2]
[319585744,1710883860577,-500.0,0.0003041,2]
[319585745,1710883860586,-500.0,0.0003041,2]
[319585746,1710883860596,-1177.64,0.0003041,2]
[319585747,1710883860605,-1298.95,0.0003041,2]
[319585748,1710883860614,-500.0,0.0003041,2]
[319585749,1710883860624,-766.46,0.0003041,2]
[319585750,1710883860633,-500.0,0.0003041,2]
[319585751,1710883860643,-500.0,0.0003041,2]
[319585752,1710883860653,-2115.61,0.0003041,2]
[319585753,1710883860662,-500.0,0.0003041,2]
[319585754,1710883860673,-1208.26,0.0003041,2]
[319585755,1710883860683,-1208.9,0.0003041,2]
[319585756,1710883860692,-500.0,0.0003041,2]
[319585757,1710883860707,-766.73,0.0003041,2]
[319585758,1710883860717,-723.63,0.0003041,2]
[319585759,1710883860727,-710.55,0.0003041,2]
[319585760,1710883860737,-755.48,0.0003041,2]
[319585761,1710883860747,-500.0,0.0003041,2]
[319585762,1710883860764,-500.0,0.0003041,2]
[319585763,1710883860774,-2700.32,0.0003041,2]
[319585764,1710883860784,-500.0,0.0003041,2]
[319585765,1710883860794,-996.42,0.0003041,2]
[319585766,1710883860804,-500.0,0.0003041,2]
[319585767,1710883860814,-201.23585611,0.0003041,2]
[319585768,1710883860824,-500.0,0.0003041,2]
[319585769,1710883860833,-500.0,0.0003041,2]
[319585770,1710883860843,-963.09,0.0003041,2]
[319585771,1710883860852,-500.0,0.0003041,2]
[319585772,1710883860862,-500.0,0.0003041,2]
[319585773,1710883860872,-708.23,0.0003041,2]
[319585774,1710883860882,-698.72,0.0003041,2]
[319585775,1710883860891,-500.0,0.0003041,2]
[319585776,1710883860902,-500.0,0.0003041,2]
[319585777,1710883860911,-1021.3,0.0003041,2]
[319585778,1710883860921,-535.49,0.0003041,2]
[319585779,1710883860931,-500.0,0.0003041,2]
[319585780,1710883860940,-500.0,0.0003041,2]
[319585781,1710883860950,-4097.82,0.0003041,2]
[319585782,1710883860960,-1107.96,0.0003041,2]
[319585783,1710883860969,-588.9,0.0003041,2]
[319585784,1710883860980,-642.55668081,0.0003041,2]
[319585785,1710883860989,-500.0,0.0003041,2]
[319585786,1710883860999,-292.0025562,0.0003041,2]
[319585787,1710883861016,-500.0,0.0003041,2]
[319585788,1710883861026,-500.0,0.0003041,2]
[319585789,1710883861036,-500.0,0.0003041,2]
[319585790,1710883861046,-678.64,0.0003041,2]
[319585791,1710883861057,-500.0,0.0003041,2]
[319585792,1710883861067,-197.3,0.0003041,2]
[319585793,1710883861077,-500.0,0.0003041,2]
[319585794,1710883861088,-500.0,0.0003041,2]
[319585795,1710883861098,-500.0,0.0003041,2]
[319585796,1710883861108,-500.0,0.0003041,2]
[319585797,1710883861121,-685.69,0.0003041,2]
[319585798,1710883861132,-751.92,0.0003041,2]
[319585799,1710883861142,-2201.35,0.0003041,2]
[319585800,1710883861152,-321.332264,0.0003041,2]
[319585801,1710883861167,-1806.15,0.0003041,2]
[319585802,1710883861178,-500.0,0.0003041,2]
[319585803,1710883861188,-500.0,0.0003041,2]
[319585804,1710883861198,-1515.11,0.0003041,2]
[319585805,1710883861208,-1513.03,0.0003041,2]
[319585806,1710883861218,-500.0,0.0003041,2]
[319585807,1710883861228,-507.98960568,0.0003041,2]
[319585808,1710883861237,-838.64,0.0003041,2]
[319585809,1710883861247,-500.0,0.0003041,2]
[319585810,1710883861261,-500.0,0.0003041,2]
[319585811,1710883861271,-693.29,0.0003041,2]
[319585812,1710883861280,-500.0,0.0003041,2]
[319585813,1710883861290,-4074.4,0.0003041,2]
[319585814,1710883861300,-603.07,0.0003041,2]
[319585815,1710883861309,-500.0,0.0003041,2]
[319585816,1710883861319,-781.62,0.0003041,2]
[319585817,1710883861328,-638.83,0.0003041,2]
[319585818,1710883861338,-500.0,0.0003041,2]
[319585819,1710883861348,-500.0,0.0003041,2]
[319585820,1710883861358,-500.0,0.0003041,2]
[319585821,1710883861367,-346.71351308,0.0003041,2]
[319585822,1710883861378,-500.0,0.0003041,2]
[319585823,1710883861388,-1180.36,0.0003041,2]
[319585824,1710883861398,-1494.04,0.0003041,2]
[319585825,1710883861407,-691.03,0.0003041,2]
[319585826,1710883861418,-640.56535441,0.0003041,2]
[319585827,1710883861427,-500.0,0.0003041,2]
[319585828,1710883861440,-500.0,0.0003041,2]
[319585829,1710883861450,-1058.59,0.0003041,2]
[319585830,1710883861459,-782.29,0.0003041,2]
[319585831,1710883861469,-500.0,0.0003041,2]
[319585832,1710883861479,-500.0,0.0003041,2]
[319585833,1710883861488,-2757.61,0.0003041,2]
[319585834,1710883861499,-1130.81,0.0003041,2]
[319585835,1710883861512,-458.26874141,0.0003041,2]
[319585836,1710883861522,-934.19,0.0003041,2]
[319585837,1710883861532,-500.0,0.0003041,2]
[319585838,1710883861541,-502.71,0.0003041,2]
[319585839,1710883861551,-626.57,0.0003041,2]
[319585840,1710883861560,-500.0,0.0003041,2]
[319585841,1710883861570,-781.11,0.0003041,2]
[319585842,1710883861579,-505.09,0.0003041,2]
[319585843,1710883861589,-912.33,0.0003041,2]
[319585844,1710883861599,-846.76,0.0003041,2]
[319585845,1710883861609,-2582.04,0.0003041,2]
[319585846,1710883861618,-1278.95,0.0003041,2]
[319585847,1710883861628,-500.0,0.0003041,2]
[319585848,1710883861637,-151.0,0.0003041,7]
[319585849,1710883861649,-151.0,0.0003041,7]
[319585850,1710883861659,-151.0,0.0003041,7]
[319585851,1710883861669,-1020.62,0.0003041,2]
[319585852,1710883861679,-1074.07,0.0003041,2]
[319585853,1710883861688,-500.0,0.0003041,2]
[319585854,1710883861698,-500.0,0.0003041,2]
[319585855,1710883861709,-1342.47,0.0003041,2]
[319585856,1710883861719,-500.0,0.0003041,2]
[319585857,1710883861729,-859.38,0.0003041,2]
[319585858,1710883861738,-869.06,0.0003041,2]
[319585859,1710883861748,-500.0,0.0003041,2]
[319585860,1710883861760,-500.0,0.0003041,2]
[319585861,1710883861770,-567.85,0.0003041,2]
[319585862,1710883861780,-500.0,0.0003041,2]
[319585863,1710883861789,-500.0,0.0003041,2]
[319585864,1710883861799,-500.0,0.0003041,2]
[319585865,1710883861808,-540.58,0.0003041,2]
[319585866,1710883861818,-691.28,0.0003041,2]
[319585867,1710883861828,-500.0,0.0003041,2]
[319585868,1710883861838,-1048.73,0.0003041,2]
[319585869,1710883861848,-731.41,0.0003041,2]
[319585870,1710883861858,-1662.72,0.0003041,2]
[319585871,1710883861868,-795.79,0.0003041,2]
[319585872,1710883861877,-500.0,0.0003041,2]
[319585873,1710883861887,-500.0,0.0003041,2]
[319585874,1710883861898,-500.0,0.0003041,2]
[319585875,1710883861908,-863.23,0.0003041,2]
[319585876,1710883861918,-1377.63,0.0003041,2]
[319585877,1710883861928,-500.0,0.0003041,2]
[319585878,1710883861941,-1320.23,0.0003041,2]
[319585879,1710883861951,-2750.0,0.0003041,2]
[319585880,1710883861961,-500.0,0.0003041,2]
[319585881,1710883861971,-150.0,0.0003041,2]
[319585882,1710883861981,-500.0,0.0003041,2]
[319585883,1710883861990,-500.0,0.0003041,2]
[319585884,1710883862000,-852.1,0.0003041,2]
[319585885,1710883862017,-500.0,0.0003041,2]
[319585886,1710883862027,-500.0,0.0003041,2]
[319585887,1710883862036,-500.0,0.0003041,2]
[319585888,1710883862046,-500.0,0.0003041,2]
[319585889,1710883862055,-500.0,0.0003041,2]
[319585890,1710883862065,-2264.1,0.0003041,2]
[319585891,1710883862075,-5000.0,0.0003041,2]
[319585892,1710883862085,-500.0,0.0003041,2]
[319585893,1710883862095,-500.0,0.0003041,2]
[319585894,1710883862107,-500.0,0.0003041,2]
[319585895,1710883862119,-533.15,0.0003041,2]
[319585896,1710883862132,-500.0,0.0003041,2]
[319585897,1710883862143,-590.4,0.0003041,2]
[319585898,1710883862154,-768.62,0.0003041,2]
[319585899,1710883862165,-813.65,0.0003041,2]
[319585900,1710883862177,-1706.37,0.0003041,2]
[319585901,1710883862188,-500.0,0.0003041,2]
[319585902,1710883862199,-710.02,0.0003041,2]
[319585903,1710883862209,-951.49,0.0003041,2]
[319585904,1710883862219,-500.0,0.0003041,2]
[319585905,1710883862230,-624.42,0.0003041,2]
[319585906,1710883862239,-500.0,0.0003041,2]
[319585907,1710883862250,-500.0,0.0003041,2]
[319585908,1710883862267,-500.0,0.0003041,2]
[319585909,1710883862277,-500.0,0.0003041,2]
[319585910,1710883862289,-500.0,0.0003041,2]
[319585911,1710883862299,-151.0,0.0003041,7]
[319585912,1710883862309,-500.0,0.0003041,2]
[319585913,1710883862320,-1083.59,0.0003041,2]
[319585914,1710883862330,-500.0,0.0003041,2]
[319585915,1710883862339,-1353.58,0.0003041,2]
[319585916,1710883862349,-500.0,0.0003041,2]
[319585917,1710883862359,-851.26,0.0003041,2]
[319585918,1710883862368,-797.1,0.0003041,2]
[319585919,1710883862378,-256.41023523,0.0003041,2]
[319585920,1710883862387,-500.0,0.0003041,2]
[319585921,1710883862397,-500.0,0.0003041,2]
[319585922,1710883862406,-500.0,0.0003041,2]
[319585923,1710883862415,-1094.92,0.0003041,2]
[319585924,1710883862425,-875.48,0.0003041,2]
[319585925,1710883862435,-2365.74,0.0003041,2]
[319585926,1710883862444,-500.0,0.0003041,2]
[319585927,1710883862453,-1362.21,0.0003041,2]
[319585928,1710883862463,-1403.96,0.0003041,2]
[319585929,1710883862473,-500.0,0.0003041,2]
[319585930,1710883862483,-500.0,0.0003041,2]
[319585931,1710883862493,-590.08,0.0003041,2]
[319585932,1710883862503,-620.16,0.0003041,2]
[319585933,1710883862516,-206.79689934,0.0003041,2]
[319585934,1710883862526,-506.75,0.0003041,2]
[319585935,1710883862535,-2130.05,0.0003041,2]
[319585936,1710883862544,-569.27,0.0003041,2]
[319585937,1710883862554,-518.16,0.0003041,2]
[319585938,1710883862563,-1766.0,0.0003041,2]
[319585939,1710883862573,-2685.94,0.0003041,2]
[319585940,1710883862582,-500.0,0.0003041,2]
[319585941,1710883862591,-873.29,0.0003041,2]
[319585942,1710883862601,-2470.79,0.0003041,2]
[319585943,1710883862611,-500.0,0.0003041,2]
[319585944,1710883862620,-1534.58,0.0003041,2]
[319585945,1710883862630,-500.0,0.0003041,2]
[319585946,1710883862639,-500.0,0.0003041,2]
[319585947,1710883862649,-500.0,0.0003041,2]
[319585948,1710883862659,-1036.45,0.0003041,2]
[319585949,1710883862668,-512.06,0.0003041,2]
[319585950,1710883862678,-507.17192807,0.0003041,2]
[319585951,1710883862687,-1470.65,0.0003041,2]
[319585952,1710883862697,-500.0,0.0003041,2]
[319585953,1710883862706,-539.91,0.0003041,2]
[319585954,1710883862715,-500.0,0.0003041,2]
[319585955,1710883862724,-1385.11,0.0003041,2]
[319585956,1710883862734,-151.323481,0.0003041,7]
[319585957,1710883862743,-500.0,0.0003041,2]
[319585958,1710883862753,-500.0,0.0003041,2]
[319585959,1710883862766,-892.09,0.0003041,2]
[319585960,1710883862776,-1041.1,0.0003041,2]
[319585961,1710883862785,-500.0,0.0003041,2]
[319585962,1710883862795,-4269.17,0.0003041,2]
[319585963,1710883862804,-500.0,0.0003041,2]
[319585964,1710883862813,-500.0,0.0003041,2]
[319585965,1710883862823,-500.0,0.0003041,2]
[319585966,1710883862832,-670.7,0.0003041,2]
[319585967,1710883862841,-1864.38,0.0003041,2]
[319585968,1710883862851,-618.06,0.0003041,2]
[319585969,1710883862860,-500.0,0.0003041,2]
[319585970,1710883862870,-597.33,0.0003041,2]
[319585971,1710883862880,-2495.07,0.0003041,2]
[319585972,1710883862889,-1054.82,0.0003041,2]
[319585973,1710883862899,-4586.31,0.0003041,2]
[319585974,1710883862908,-1014.6,0.0003041,2]
[319585975,1710883862918,-500.0,0.0003041,2]
[319585976,1710883862928,-500.0,0.0003041,2]
[319585977,1710883862938,-500.0,0.0003041,2]
[319585978,1710883862947,-500.0,0.0003041,2]
[319585979,1710883862957,-500.0,0.0003041,2]
[319585980,1710883862967,-1337.58,0.0003041,2]
[319585981,1710883862977,-512.04,0.0003041,2]
[319585982,1710883862986,-677.62,0.0003041,2]
[319585983,1710883862996,-1526.76,0.0003041,2]
[319585984,1710883863008,-1259.98,0.0003041,2]
[319585985,1710883863020,-1566.09,0.0003041,2]
[319585986,1710883863030,-775.9,0.0003041,2]
[319585987,1710883863040,-501.49026417,0.0003041,2]
[319585988,1710883863050,-500.0,0.0003041,2]
[319585989,1710883863059,-694.07,0.0003041,2]
[319585990,1710883863069,-170.1360174,0.0003041,2]
[319585991,1710883863079,-2087.64,0.0003041,2]
[319585992,1710883863089,-151.0,0.0003041,7]
[319585993,1710883863100,-151.0,0.0003041,7]
[319585994,1710883863112,-500.0,0.0003041,2]
[319585995,1710883863124,-151.0,0.0003041,7]
[319585996,1710883863136,-511.94,0.0003041,2]
[319585997,1710883863146,-500.0,0.0003041,2]
[319585998,1710883863156,-500.0,0.0003041,2]
[319585999,1710883863166,-1387.77,0.0003041,2]
[319586000,1710883863176,-500.0,0.0003041,2]
[319586001,1710883863186,-500.0,0.0003041,2]
[319586002,1710883863196,-3092.84,0.0003041,2]
[319586003,1710883863206,-2016.56,0.0003041,2]
[319586004,1710883863216,-500.0,0.0003041,2]
[319586005,1710883863227,-500.0,0.0003041,2]
[319586006,1710883863236,-4137.27,0.0003041,2]
[319586007,1710883863246,-500.0,0.0003041,2]
[319586008,1710883863258,-500.0,0.0003041,2]
[319586009,1710883863269,-500.0,0.0003041,2]
[319586010,1710883863279,-500.0,0.0003041,2]
[319586011,1710883863288,-1221.58,0.0003041,2]
[319586012,1710883863298,-887.17,0.0003041,2]
[319586013,1710883863307,-1339.53,0.0003041,2]
[319586014,1710883863317,-1141.5,0.0003041,2]
[319586015,1710883863326,-2224.93,0.0003041,2]
[319586016,1710883863336,-500.0,0.0003041,2]
[319586017,1710883863346,-522.54,0.0003041,2]
[319586018,1710883863355,-515.48,0.0003041,2]
[319586019,1710883863364,-500.0,0.0003041,2]
[319586020,1710883863374,-1238.68,0.0003041,2]
[319586021,1710883863384,-755.91,0.0003041,2]
[319586022,1710883863393,-521.0,0.0003041,2]
[319586023,1710883863402,-1097.47,0.0003041,2]
[319586024,1710883863411,-500.0,0.0003041,2]
[319586025,1710883863421,-500.0,0.0003041,2]
[319586026,1710883863430,-853.55,0.0003041,2]
[319586027,1710883863439,-735.47,0.0003041,2]
[319586028,1710883863448,-1615.45,0.0003041,2]
[319586029,1710883863458,-500.0,0.0003041,2]
[319586030,1710883863467,-859.69,0.0003041,2]
[319586031,1710883863478,-1583.83,0.0003041,2]
[319586032,1710883863487,-500.0,0.0003041,2]
[319586033,1710883863497,-500.0,0.0003041,2]
[319586034,1710883863509,-419.31104287,0.0003041,2]
[319586035,1710883863519,-780.78,0.0003041,2]
[319586036,1710883863529,-500.0,0.0003041,2]
[319586037,1710883863539,-2133.33,0.0003041,2]
[319586038,1710883863549,-500.0,0.0003041,2]
[319586039,1710883863559,-500.0,0.0003041,2]
[319586040,1710883863569,-151.0,0.0003041,7]
[319586041,1710883863579,-151.0,0.0003041,7]
[319586042,1710883863588,-151.0,0.0003041,7]
[319586043,1710883863598,-1323.94,0.0003041,2]
[319586044,1710883863607,-500.0,0.0003041,2]
[319586045,1710883863616,-823.79,0.0003041,2]
[319586046,1710883863626,-500.0,0.0003041,2]
[319586047,1710883863635,-500.0,0.0003041,2]
[319586048,1710883863644,-508.96,0.0003041,2]
[319586049,1710883863654,-1623.15,0.0003041,2]
[319586050,1710883863663,-500.0,0.0003041,2]
[319586051,1710883863672,-795.56,0.0003041,2]
[319586052,1710883863681,-500.0,0.0003041,2]
[319586053,1710883863690,-500.0,0.0003041,2]
[319586054,1710883863699,-704.5,0.0003041,2]
[319586055,1710883863708,-1065.61,0.0003041,2]
[319586056,1710883863718,-1468.41,0.0003041,2]
[319586057,1710883863727,-1194.31,0.0003041,2]
[319586058,1710883863737,-500.0,0.0003041,2]
[319586059,1710883863747,-500.0,0.0003041,2]
[319586060,1710883863760,-1136.64,0.0003041,2]
[319586061,1710883863770,-736.67,0.0003041,2]
[319586062,1710883863780,-1054.6,0.0003041,2]
[319586063,1710883863790,-500.0,0.0003041,2]
[319586064,1710883863799,-500.0,0.0003041,2]
[319586065,1710883863809,-284.91593306,0.0003041,2]
[319586066,1710883863818,-1431.34,0.0003041,2]
[319586067,1710883863828,-500.0,0.0003041,2]